bitfinex/quotes_ETHUSD_20260130
["timestamp","ask_amount","ask_price","bid_price","bid_amount"]
[1769756041835,0.1024,2726.7,2725.2,12.89303223]
[1769756042353,0.10484627,2727.1,2725.2,12.89303223]
[1769756042552,0.10484627,2727.1,2725.4,12.89303223]
[1769756043132,0.1024,2726.9,2725.4,12.89303223]
[1769756043846,0.001,2726.5,2725.4,12.89303223]
[1769756047187,0.10484627,2727.1,2725.4,12.89303223]
[1769756050959,0.10484627,2727.1,2725.6,12.89303223]
[1769756051160,0.76821208,2727.1,2725.7,14.18233545]
[1769756054178,3.725451,2727.0,2725.7,14.18233545]
[1769756054971,10.11236283,2727.0,2725.7,14.18233545]
[1769756055181,6.52881183,2726.9,2725.3,12.89303223]
[1769756056148,6.844453,2726.8,2725.3,12.89303223]
[1769756056348,2.665728,2726.8,2725.3,12.89303223]
[1769756056559,2.665728,2726.8,2725.6,0.002]
[1769756056760,2.665728,2726.8,2725.6,12.89503223]
[1769756056952,0.91945398,2726.7,2725.6,12.89503223]
[1769756057977,0.91945398,2726.7,2725.1,0.002]
[1769756057978,6.42641183,2726.4,2725.1,12.89503223]
[1769756058146,6.52881183,2726.3,2725.1,0.002]
[1769756058478,0.63771275,2726.2,2725.1,0.002]
[1769756058644,4.067392,2726.2,2725.1,0.002]
[1769756059479,0.1024,2726.0,2725.1,0.002]
[1769756059684,5.299381,2725.9,2725.1,0.002]
[1769756060275,5.299381,2725.9,2724.4,13.66203223]
[1769756060276,10.649241,2725.8,2724.4,13.66203223]
[1769756060596,8.311941,2725.8,2724.4,13.66203223]
[1769756060899,7.242226,2725.8,2724.4,13.66203223]
[1769756061104,6.42641183,2725.9,2723.5,12.89303223]
[1769756061105,6.52683183,2725.5,2723.5,12.89303223]
[1769756061302,6.52683183,2725.5,2723.8,12.89503223]
[1769756061303,11.61996883,2725.4,2723.8,12.89503223]
[1769756061595,0.1024,2724.8,2723.8,0.002]
[1769756061778,6.213984,2724.7,2723.8,0.002]
[1769756062093,6.52485183,2724.6,2723.3,0.002]
[1769756062293,0.1024,2724.4,2723.0,12.89503223]
[1769756062603,0.1024,2724.3,2723.0,12.89503223]
[1769756062777,0.771106,2724.2,2723.0,12.89503223]
[1769756062973,0.1024,2724.5,2723.0,12.89503223]
[1769756063927,15.657531,2724.6,2723.0,12.89503223]
[1769756064970,10.868932,2724.6,2723.0,12.89503223]
[1769756065395,6.65602213,2725.3,2723.0,12.89503223]
[1769756065603,0.1024,2724.8,2723.2,12.89303223]
[1769756065770,0.1024,2724.6,2723.2,12.89303223]
[1769756066405,7.14563,2725.2,2723.2,12.89303223]
[1769756066595,0.1024,2725.1,2723.2,12.89303223]
[1769756068798,0.1024,2725.5,2723.2,12.89303223]
[1769756069102,0.1024,2725.3,2723.4,13.18432955]
[1769756070100,0.1024,2725.1,2723.4,13.18432955]
[1769756072111,0.65248518,2725.4,2723.4,13.18432955]
[1769756072279,0.001,2725.7,2723.4,14.10229914]
[1769756072877,0.001,2725.7,2723.4,13.18432955]
[1769756073076,3.442723,2725.4,2723.4,13.18432955]
[1769756073601,0.1024,2725.5,2723.4,13.18432955]
[1769756073812,8.415349,2725.4,2723.4,13.18432955]
[1769756073987,13.850264,2725.2,2723.6,13.18432955]
[1769756074173,6.52485183,2725.5,2723.6,13.18432955]
[1769756074174,5.417266,2725.4,2723.6,13.18432955]
[1769756074375,2.105124,2725.4,2723.6,13.18432955]
[1769756074676,0.001,2725.7,2723.6,13.18432955]
[1769756074870,2.120578,2725.6,2723.6,13.18432955]
[1769756075112,0.001,2725.7,2723.8,13.18432955]
[1769756075113,0.3145578,2725.5,2723.8,13.18432955]
[1769756075292,0.1024,2725.5,2723.8,13.18432955]
[1769756075876,0.001,2725.7,2723.8,13.18432955]
[1769756076209,0.001,2725.7,2723.7,1.45027625]
[1769756076210,0.001,2725.7,2724.2,13.03238667]
[1769756076422,6.5272981,2727.1,2724.5,13.03238667]
[1769756076591,5.788652,2727.0,2724.6,13.80238667]
[1769756076779,0.1024,2726.8,2724.8,13.03238667]
[1769756077194,4.282483,2726.7,2724.8,13.03238667]
[1769756077678,2.939935,2726.7,2724.8,13.03238667]
[1769756078512,6.52584183,2726.4,2724.8,13.03238667]
[1769756078689,7.236742,2726.1,2724.8,13.03238667]
[1769756078878,0.7236742,2726.0,2724.8,13.03238667]
[1769756079075,0.1024,2726.2,2724.8,13.03238667]
[1769756079276,0.1024,2726.0,2724.8,13.03238667]
[1769756079688,0.1024,2725.6,2724.6,0.77]
[1769756080885,30.0,2726.0,2724.6,0.77]
[1769756081085,0.1024,2725.6,2724.6,0.77]
[1769756081282,8.277985,2725.3,2724.6,0.77]
[1769756081486,4.921538,2725.3,2724.6,0.77]
[1769756081687,0.1024,2725.4,2724.6,0.77]
[1769756082416,0.1024,2725.7,2724.6,0.77]
[1769756082587,0.1024,2725.5,2724.6,0.77]
[1769756082989,2.293598,2725.4,2724.6,0.77]
[1769756085191,0.1024,2725.7,2724.6,0.77]
[1769756085391,3.951892,2725.4,2724.6,0.77]
[1769756085605,3.144892,2725.4,2724.6,0.77]
[1769756086693,6.57534183,2726.1,2724.6,0.77]
[1769756086891,17.36768,2725.6,2724.6,13.80238667]
[1769756087216,0.1024,2725.5,2724.6,13.80238667]
[1769756090418,0.1024,2725.8,2724.6,13.80238667]
[1769756091733,0.001,2726.3,2724.6,13.80238667]
[1769756091943,0.001,2726.3,2724.8,13.03238667]
[1769756092096,0.1024,2725.9,2724.8,13.03238667]
[1769756093839,27.98777,2726.2,2724.8,13.03238667]
[1769756094010,0.1024,2725.9,2724.8,13.03238667]
[1769756095316,6.47394183,2726.3,2724.8,13.03238667]
[1769756095317,5.041135,2726.1,2724.8,13.03238667]
[1769756096438,0.1024,2726.1,2724.8,13.03238667]
[1769756096621,0.64739418,2726.2,2724.8,13.03238667]
[1769756096810,0.1024,2726.0,2724.8,13.03238667]
[1769756097211,0.001,2726.3,2724.8,13.03238667]
[1769756097445,0.001,2726.3,2725.0,12.93452652]
[1769756099464,9.803493,2726.2,2725.0,12.93452652]
[1769756100469,0.001,2726.3,2725.0,12.93452652]
[1769756100671,2.254657,2726.2,2725.0,12.93452652]
[1769756101168,18.488632,2726.0,2724.1,12.93452652]
[1769756101380,0.1024,2725.9,2724.5,12.93452652]
[1769756101564,4.948841,2725.8,2724.5,12.93452652]
[1769756103055,0.001,2726.3,2724.5,12.93452652]
[1769756103551,0.001,2726.3,2724.8,12.93452652]
[1769756103759,0.001,2726.3,2724.5,0.91758576]
[1769756103760,0.10484627,2727.1,2725.0,12.93452652]
[1769756103960,0.10484627,2727.1,2725.2,12.93452652]
[1769756105080,0.1024,2726.9,2725.2,12.93452652]
[1769756106451,0.001,2726.7,2725.2,12.93452652]
[1769756106870,0.001,2726.7,2725.2,13.85188295]
[1769756107070,0.10484627,2727.1,2725.2,13.85188295]
[1769756107071,0.10484627,2727.1,2725.5,12.93452652]
[1769756107453,0.1024,2727.8,2725.5,12.93452652]
[1769756107664,3.393587,2727.7,2725.5,12.93452652]
[1769756108456,3.393587,2727.7,2725.7,12.93452652]
[1769756108687,11.926859,2727.2,2725.7,12.93452652]
[1769756108841,6.320149,2727.8,2725.9,12.93452652]
[1769756109047,3.61683,2727.6,2725.9,12.93452652]
[1769756109463,0.31411983,2727.9,2725.9,12.93452652]
[1769756109749,0.1024,2727.8,2725.9,12.93452652]
[1769756110757,3.409415,2727.7,2725.9,12.93452652]
[1769756110951,0.4535815,2727.6,2726.1,12.93452652]
[1769756111149,0.1024,2727.6,2726.1,12.93452652]
[1769756111692,0.31411983,2727.9,2726.1,12.93452652]
[1769756112160,0.31411983,2727.9,2726.3,12.93452652]
[1769756112491,0.1024,2727.8,2726.3,12.93452652]
[1769756112811,0.1024,2727.8,2726.0,1.49969792]
[1769756112812,0.1024,2727.8,2726.5,12.93452652]
[1769756113007,0.1024,2727.8,2726.7,12.93452652]
[1769756114488,0.1024,2727.8,2726.8,0.769]
[1769756115289,13.465992,2727.7,2726.4,12.93452652]
[1769756115452,6.180775,2727.7,2726.7,0.769]
[1769756115652,0.6283175,2727.6,2726.7,0.769]
[1769756115881,8.068534,2727.7,2726.7,0.769]
[1769756116194,6.268534,2727.7,2726.7,0.769]
[1769756116682,6.268534,2727.7,2726.4,12.93452652]
[1769756116886,0.1024,2727.8,2725.4,12.93452652]
[1769756116887,0.1024,2727.4,2725.4,12.93452652]
[1769756117057,5.39814,2727.3,2726.1,13.70352652]
[1769756117261,0.1024,2727.4,2725.3,1.55335356]
[1769756117262,0.1024,2727.1,2725.3,1.55335356]
[1769756117464,0.1024,2727.1,2725.4,12.93452652]
[1769756117797,4.392209,2726.7,2725.4,12.93452652]
[1769756118092,4.392209,2726.7,2724.8,0.002]
[1769756118093,0.1024,2726.8,2725.6,12.93452652]
[1769756118280,3.66617795,2727.7,2725.6,12.93452652]
[1769756118281,0.1024,2727.1,2725.6,12.93452652]
[1769756118450,3.106607,2726.8,2725.6,12.93452652]
[1769756118652,0.3209007,2726.8,2725.7,14.30487917]
[1769756118848,3.106607,2726.8,2725.7,14.30487917]
[1769756119088,0.1024,2726.9,2725.7,14.30487917]
[1769756119651,6.57772964,2727.4,2725.7,14.30487917]
[1769756119652,0.1024,2727.1,2725.7,14.30487917]
[1769756119961,7.49435644,2727.4,2725.7,14.30487917]
[1769756119962,0.1024,2726.9,2725.7,14.30487917]
[1769756120353,0.001,2727.5,2725.7,14.30487917]
[1769756120552,0.1024,2727.3,2725.9,12.93452652]
[1769756120814,0.001,2727.5,2725.9,12.93452652]
[1769756121258,0.001,2727.5,2726.1,12.93452652]
[1769756123271,0.31411983,2727.9,2726.3,12.93452652]
[1769756126284,0.31411983,2727.9,2725.9,0.50991188]
[1769756126492,0.31411983,2727.9,2726.0,13.6455858]
[1769756126890,0.31411983,2727.9,2726.2,13.6455858]
[1769756128167,19.15958767,2727.8,2726.3,0.769]
[1769756128368,13.29190867,2727.8,2726.3,14.4145858]
[1769756128564,2.00260285,2727.7,2726.3,15.85604438]
[1769756129187,15.29451152,2727.7,2726.3,15.08704438]
[1769756129363,11.731558,2727.6,2726.4,0.769]
[1769756129559,2.00260285,2727.7,2726.4,14.4145858]
[1769756129765,2.616284,2727.7,2726.4,14.4145858]
[1769756129964,0.1024,2727.8,2726.4,14.4145858]
[1769756132270,0.001,2727.7,2726.4,14.4145858]
[1769756134141,0.001,2727.7,2725.9,0.002]
[1769756134142,13.29190867,2727.1,2725.9,0.002]
[1769756134417,1.33943087,2727.0,2726.1,0.769]
[1769756134898,0.1024,2727.2,2726.1,14.4145858]
[1769756141176,17.50871894,2727.6,2726.2,13.10109861]
[1769756141376,0.001,2727.7,2726.2,13.10109861]
[1769756141377,7.493335,2727.5,2726.3,0.769]
[1769756141626,12.66896094,2727.5,2726.3,0.769]
[1769756142204,12.66896094,2727.5,2726.2,13.10109861]
[1769756142205,1.26689609,2727.4,2726.4,0.769]
[1769756142379,13.93585703,2727.4,2726.4,0.769]
[1769756143308,1.26689609,2727.4,2726.4,0.769]
[1769756143477,0.1024,2727.5,2726.4,0.769]
[1769756143806,4.188786,2727.4,2726.4,0.769]
[1769756144015,0.1024,2727.5,2726.4,0.769]
[1769756144174,3.479064,2727.4,2726.4,0.769]
[1769756144593,0.1024,2727.5,2726.4,0.769]
[1769756144883,3.43502,2727.4,2726.4,0.769]
[1769756145107,0.353742,2727.3,2726.4,0.769]
[1769756145274,0.1024,2727.5,2726.4,0.769]
[1769756145474,0.1024,2727.5,2726.4,13.87009861]
[1769756146109,0.1024,2727.5,2726.4,0.769]
[1769756146705,6.5224,2727.5,2726.4,0.769]
[1769756146889,19.19136094,2727.5,2726.1,13.10109861]
[1769756147221,12.66896094,2727.2,2726.0,0.769]
[1769756147525,12.66896094,2727.0,2725.9,0.002]
[1769756148541,12.66896094,2727.0,2725.6,0.771]
[1769756148542,13.58572995,2727.0,2725.6,0.771]
[1769756148691,0.1024,2726.5,2725.6,0.771]
[1769756148892,0.1024,2726.3,2725.6,0.771]
[1769756149297,12.77136094,2726.3,2725.4,0.002]
[1769756149507,12.77136094,2726.3,2724.8,0.002]
[1769756149508,0.1024,2726.0,2724.8,0.002]
[1769756149816,0.7522107,2725.9,2724.8,0.002]
[1769756151216,20.44143594,2725.6,2724.8,0.002]
[1769756151421,10.734353,2725.5,2724.8,0.002]
[1769756151789,10.734353,2725.5,2724.5,0.002]
[1769756151790,0.1024,2725.4,2724.5,0.002]
[1769756151990,0.96854786,2725.3,2724.5,0.002]
[1769756152197,12.66896094,2725.3,2724.5,0.002]
[1769756153322,12.66896094,2725.3,2724.0,0.002]
[1769756153323,13.056531,2725.0,2724.0,0.002]
[1769756153494,11.805371,2725.0,2724.0,0.002]
[1769756153936,11.805371,2725.0,2723.8,0.771]
[1769756153937,12.77136094,2724.8,2723.8,0.002]
[1769756154098,0.1024,2724.6,2723.8,0.002]
[1769756155488,17.100039,2724.5,2723.8,0.002]
[1769756155640,14.832431,2724.5,2723.8,0.002]
[1769756155834,9.305972,2724.5,2723.8,0.002]
[1769756156139,0.7522107,2724.4,2723.0,0.002]
[1769756156486,0.7522107,2724.4,2723.0,13.3031298]
[1769756156943,0.7522107,2724.4,2723.0,0.002]
[1769756156944,13.40140961,2724.0,2723.0,0.002]
[1769756157131,6.798629,2723.8,2723.0,0.002]
[1769756157332,4.435454,2723.5,2723.0,0.002]
[1769756157527,10.37105,2723.6,2722.9,0.771]
[1769756157979,20.890854,2723.5,2722.0,0.002]
[1769756158185,2.02000386,2723.7,2722.7,13.3031298]
[1769756158473,0.1024,2724.1,2722.7,13.3031298]
[1769756158675,0.1024,2724.3,2722.7,13.3031298]
[1769756158676,0.6550808,2724.0,2722.7,13.3031298]
[1769756158874,11.156296,2724.0,2722.7,13.3031298]
[1769756159078,0.1024,2723.9,2722.7,13.3031298]
[1769756159280,0.1024,2723.7,2722.7,13.3031298]
[1769756159479,0.1024,2723.8,2722.7,0.002]
[1769756159848,5.354052,2723.7,2722.7,0.002]
[1769756160049,0.37077663,2724.3,2722.7,13.3031298]
[1769756160050,0.1024,2724.2,2722.7,13.3031298]
[1769756161794,0.37077663,2724.3,2722.7,13.3031298]
[1769756163775,0.37077663,2724.3,2722.7,14.22131843]
[1769756163949,16.250975,2725.0,2722.8,12.92091381]
[1769756164150,0.1024,2724.7,2722.8,12.92091381]
[1769756164469,0.3843971,2724.6,2723.0,12.92091381]
[1769756164659,0.1024,2724.8,2723.0,12.92091381]
[1769756165965,0.1024,2724.8,2722.9,1.29229138]
[1769756165966,7.643657,2725.1,2723.2,13.80823651]
[1769756166165,5.094642,2725.1,2723.2,13.80823651]
[1769756166560,0.1024,2725.2,2723.2,13.80823651]
[1769756167361,0.1024,2725.4,2723.2,13.80823651]
[1769756167560,0.1024,2725.4,2723.1,0.91806597]
[1769756167561,0.1024,2725.4,2723.4,13.80823651]
[1769756167888,0.30915197,2725.5,2723.7,13.80823651]
[1769756168271,0.30915197,2725.5,2723.7,14.72610093]
[1769756168456,0.30915197,2725.5,2723.9,13.80823651]
[1769756168656,0.30915197,2725.5,2723.8,3.31081009]
[1769756168657,0.30915197,2725.5,2724.0,0.77]
[1769756168892,0.30915197,2725.5,2724.1,13.80823651]
[1769756169598,0.001,2724.6,2724.1,13.80823651]
[1769756170091,0.30915197,2725.5,2724.1,13.80823651]
[1769756170386,0.30915197,2725.5,2724.3,13.80823651]
[1769756171260,0.30915197,2725.5,2724.3,14.57823651]
[1769756176662,3.765091,2724.9,2723.4,13.80823651]
[1769756176886,3.765091,2724.9,2723.5,0.77]
[1769756177564,3.147336,2724.8,2723.4,14.57823651]
[1769756177760,3.157838,2724.8,2723.4,14.57823651]
[1769756177959,2.751142,2724.8,2723.4,14.57823651]
[1769756178159,1.60492951,2724.7,2723.5,1.45782365]
[1769756178568,1.60492951,2724.7,2723.5,15.26606016]
[1769756178983,0.1024,2725.0,2723.5,15.26606016]
[1769756180087,13.29815311,2724.8,2723.5,1.45782365]
[1769756180393,13.29815311,2724.8,2723.4,14.57823651]
[1769756180761,0.1024,2725.0,2723.4,14.57823651]
[1769756180962,3.547638,2724.9,2723.4,14.57823651]
[1769756181486,0.001,2724.6,2723.4,14.57823651]
[1769756181694,0.001,2724.6,2723.5,15.26606016]
[1769756187100,13.07020981,2724.4,2723.2,0.002]
[1769756187396,0.001,2724.6,2723.2,0.002]
[1769756187397,3.248727,2724.2,2723.2,0.002]
[1769756189690,13.17260981,2724.3,2723.2,0.002]
[1769756189903,1.31726098,2724.2,2723.2,0.002]
[1769756190506,1.31726098,2724.2,2723.2,13.03120081]
[1769756190674,0.001,2724.6,2723.2,13.03120081]
[1769756192903,3.113432,2724.5,2723.2,13.03120081]
[1769756193200,3.113432,2724.5,2723.4,0.002]
[1769756193906,2.238903,2724.5,2723.4,0.002]
[1769756194106,1.53101128,2724.4,2723.4,13.03120081]
[1769756194307,0.001,2724.6,2723.4,13.03120081]
[1769756197009,13.5352023,2724.4,2723.4,0.002]
[1769756197209,9.346024,2724.3,2723.4,0.002]
[1769756198319,9.002457,2724.3,2723.4,0.002]
[1769756198927,8.372133,2724.3,2723.4,0.002]
[1769756199099,2.19073353,2724.2,2723.4,0.002]
[1769756199984,6.686669,2724.1,2723.4,0.002]
[1769756200238,5.99368,2724.1,2723.2,0.002]
[1769756200987,2.19073353,2724.2,2723.0,0.002]
[1769756200988,7.397775,2723.9,2723.0,0.002]
[1769756201326,13.6376023,2724.0,2722.5,14.19616917]
[1769756201327,2.439738,2723.7,2722.5,14.19616917]
[1769756201491,0.2542138,2723.6,2722.5,14.19616917]
[1769756201685,2.72944,2723.7,2722.5,14.19616917]
[1769756202215,0.1024,2723.8,2722.5,14.19616917]
[1769756202816,2.033741,2723.7,2722.5,14.19616917]
[1769756203387,0.1024,2723.8,2722.5,14.19616917]
[1769756203788,0.1024,2723.8,2722.7,13.42816917]
[1769756204004,15.72593583,2724.2,2722.8,14.76898609]
[1769756204005,0.1024,2724.1,2722.8,14.76898609]
[1769756204494,13.5352023,2724.5,2722.8,14.76898609]
[1769756204495,0.1024,2724.4,2722.8,14.76898609]
[1769756204696,0.1024,2724.2,2722.8,14.76898609]
[1769756205019,4.960502,2724.1,2722.8,14.76898609]
[1769756205199,3.063502,2724.1,2722.8,14.76898609]
[1769756205524,0.3165902,2724.0,2723.0,13.42616917]
[1769756205699,2.667502,2724.1,2723.0,13.42616917]
[1769756206021,5.075413,2724.2,2723.0,13.42616917]
[1769756206320,4.379413,2724.2,2723.0,13.42616917]
[1769756207918,0.1024,2724.3,2723.0,13.42616917]
[1769756208217,5.075413,2724.2,2723.0,13.42616917]
[1769756208416,0.5177813,2724.1,2723.0,13.42616917]
[1769756208616,0.1024,2724.4,2723.0,13.42616917]
[1769756209122,19.6234243,2724.3,2723.0,13.42616917]
[1769756209331,7.205979,2724.2,2723.1,0.77]
[1769756209684,7.205979,2724.2,2723.0,13.42616917]
[1769756210126,13.5352023,2724.3,2723.0,13.42616917]
[1769756210326,1.36376023,2724.2,2723.0,14.99369595]
[1769756210523,1.36376023,2724.2,2723.0,13.42616917]
[1769756214395,14.89896253,2724.2,2723.0,13.42616917]
[1769756214813,6.856805,2724.0,2723.0,13.42616917]
[1769756215013,5.260394,2724.0,2723.0,13.42616917]
[1769756215199,2.672856,2724.0,2723.0,13.42616917]
[1769756215419,1.62080583,2723.9,2723.0,13.42616917]
[1769756215817,0.1024,2724.4,2723.0,13.42616917]
[1769756217730,0.1024,2724.3,2723.0,13.42616917]
[1769756217930,0.001,2724.0,2723.0,13.42616917]
[1769756218604,0.001,2724.0,2722.9,0.772]
[1769756219029,0.1024,2723.9,2722.9,0.722]
[1769756219199,1.2867716,2723.8,2722.9,0.722]
[1769756220716,14.05108758,2723.8,2722.7,0.002]
[1769756220914,17.39214198,2723.5,2722.7,0.002]
[1769756221119,0.1024,2723.3,2722.7,0.002]
[1769756221298,2.453511,2723.2,2722.6,0.002]
[1769756221498,1.5320227,2723.1,2722.6,0.002]
[1769756221917,14.29633868,2723.1,2722.1,0.772]
[1769756222440,12.76431598,2722.9,2721.6,0.002]
[1769756222642,12.76431598,2722.2,2721.0,0.002]
[1769756222805,1.2764316,2722.1,2721.2,12.70953004]
[1769756223003,0.1024,2722.2,2721.2,12.70953004]
[1769756223206,0.1024,2722.3,2721.2,12.70953004]
[1769756223400,12.76431598,2722.1,2721.0,0.002]
[1769756224822,5.565163,2722.0,2721.0,0.002]
[1769756225024,4.877496,2722.0,2721.0,0.002]
[1769756225233,1.7641812,2721.9,2721.0,0.002]
[1769756225923,0.1024,2721.8,2721.0,0.002]
[1769756226127,12.86671598,2721.8,2721.0,0.002]
[1769756226321,5.163133,2721.7,2721.0,0.002]
[1769756226836,0.1024,2721.6,2720.5,12.66153004]
[1769756227016,0.1024,2721.6,2720.4,0.77]
[1769756227017,0.1024,2721.7,2720.4,13.47953004]
[1769756227334,1.7147833,2721.6,2720.5,14.05748304]
[1769756228104,1.7147833,2721.6,2720.5,1.347953]
[1769756228304,1.7147833,2721.6,2720.4,0.77]
[1769756228712,1.7147833,2721.6,2720.4,13.47953004]
[1769756230210,0.001,2721.7,2720.4,13.47953004]
[1769756235742,0.001,2721.7,2720.4,0.77]
[1769756236048,0.001,2721.7,2720.5,12.70953004]
[1769756239262,12.76531598,2721.7,2720.6,0.77]
[1769756239450,0.001,2721.7,2720.6,13.47953004]
[1769756240960,12.76431598,2721.3,2720.2,0.002]
[1769756241163,12.76431598,2721.3,2719.0,13.47953004]
[1769756241164,12.76431598,2721.0,2719.0,13.47953004]
[1769756241333,0.1024,2720.8,2719.0,13.47953004]
[1769756241533,0.96278686,2720.8,2719.0,13.47953004]
[1769756241788,0.96278686,2720.8,2719.2,12.70953004]
[1769756242056,0.2345703,2721.7,2719.3,12.70953004]
[1769756242057,0.82220949,2721.6,2719.3,12.70953004]
[1769756242257,0.1024,2721.5,2719.4,12.70953004]
[1769756242560,0.1024,2721.5,2719.6,12.70953004]
[1769756242858,0.82156089,2721.5,2719.6,12.70953004]
[1769756243060,1.35858769,2721.4,2719.8,12.70953004]
[1769756243241,12.76431598,2721.3,2719.9,0.771]
[1769756243858,0.1024,2721.2,2719.8,12.70953004]
[1769756244062,12.76431598,2721.1,2719.4,12.70953004]
[1769756244235,12.86671598,2720.8,2719.5,0.771]
[1769756244555,1.62906696,2720.7,2719.5,13.48053004]
[1769756244743,0.1024,2720.8,2719.5,13.48053004]
[1769756245622,12.76431598,2721.2,2719.6,0.771]
[1769756245623,13.54009282,2720.9,2719.6,0.771]
[1769756245826,2.636709,2720.8,2719.6,0.771]
[1769756246228,13.43769282,2720.8,2719.6,0.771]
[1769756246831,13.43769282,2720.8,2719.1,15.04000599]
[1769756247033,13.43769282,2720.8,2718.5,0.002]
[1769756247034,1.35400928,2720.7,2719.3,13.69205299]
[1769756247553,0.1024,2721.1,2719.3,13.69205299]
[1769756247931,3.145731,2721.0,2719.3,13.69205299]
[1769756248159,18.24163182,2720.8,2719.3,13.69205299]
[1769756248361,13.43769282,2720.7,2719.4,0.771]
[1769756249068,13.43769282,2720.7,2719.5,0.771]
[1769756249254,1.34376928,2720.6,2719.5,2.2173053]
[1769756249455,3.901428,2720.9,2719.5,15.90935829]
[1769756249752,0.1024,2720.9,2719.5,15.90935829]
[1769756249957,2.27682,2721.2,2719.5,15.90935829]
[1769756250188,0.227682,2721.1,2719.7,13.69205299]
[1769756250490,0.1024,2721.4,2719.7,13.69205299]
[1769756250692,5.075488,2721.1,2719.7,13.69205299]
[1769756250989,2.436985,2721.1,2719.8,14.46305299]
[1769756251197,2.436985,2721.1,2719.8,13.69205299]
[1769756251505,2.436985,2721.1,2719.9,0.771]
[1769756251821,1.59770778,2721.0,2719.9,0.771]
[1769756252697,1.59770778,2721.0,2719.8,13.69205299]
[1769756252867,1.59770778,2721.0,2719.8,14.46305299]
[1769756254852,1.59770778,2721.0,2719.6,0.002]
[1769756254853,13.43769282,2720.8,2719.6,0.002]
[1769756255162,13.43769282,2720.6,2719.6,0.002]
[1769756255489,13.54009282,2720.4,2719.6,0.002]
[1769756255852,6.42,2720.8,2718.6,0.771]
[1769756255853,14.03531987,2720.2,2718.6,0.771]
[1769756256098,14.03531987,2720.2,2718.6,13.81247779]
[1769756256558,0.1024,2720.2,2718.6,13.81247779]
[1769756256755,13.93291987,2720.7,2718.8,13.04147779]
[1769756257091,4.626081,2720.5,2718.8,13.04147779]
[1769756257261,0.1024,2720.1,2718.9,0.771]
[1769756258489,13.93291987,2720.3,2719.0,0.771]
[1769756258490,0.1024,2720.2,2719.0,0.771]
[1769756258669,1.40353199,2720.1,2719.0,0.771]
[1769756259666,1.40353199,2720.1,2718.9,0.771]
[1769756260063,1.40353199,2720.1,2718.9,13.81247779]
[1769756260379,13.93291987,2720.7,2718.9,13.81247779]
[1769756260596,9.340639,2721.3,2719.0,13.04147779]
[1769756260772,0.72016089,2721.5,2719.0,13.96092556]
[1769756260773,7.03378084,2721.2,2719.0,13.96092556]
[1769756261090,0.1024,2720.9,2719.2,13.04147779]
[1769756261262,4.967198,2720.8,2719.2,13.04147779]
[1769756261458,6.787278,2720.6,2719.3,2.15224778]
[1769756261692,6.42,2720.5,2719.3,2.15224778]
[1769756262270,6.42,2720.5,2719.4,0.771]
[1769756262782,6.42,2720.5,2719.4,13.81247779]
[1769756264900,6.42,2720.5,2719.5,0.771]
[1769756265095,0.642,2720.4,2719.5,0.771]
[1769756265468,0.642,2720.4,2719.6,0.002]
[1769756265673,0.001,2720.3,2719.6,0.002]
[1769756267873,6.421,2720.3,2719.7,0.771]
[1769756268072,6.421,2720.3,2719.6,0.773]
[1769756268285,0.7063,2720.2,2719.6,0.002]
[1769756270195,0.7063,2720.2,2719.4,13.04347779]
[1769756270396,6.421,2720.3,2719.4,13.04347779]
[1769756270872,6.421,2720.3,2719.5,0.771]
[1769756272507,0.001,2720.3,2719.4,0.002]
[1769756272704,0.001,2720.3,2719.4,13.04347779]
[1769756273000,0.1024,2720.8,2719.6,13.04147779]
[1769756273203,0.61378084,2720.9,2719.6,13.04147779]
[1769756273573,0.001,2721.5,2719.6,13.04147779]
[1769756274803,0.001,2721.5,2719.7,13.04147779]
[1769756275021,0.001,2721.5,2719.9,13.04147779]
[1769756275227,0.001,2721.5,2720.1,13.04147779]
[1769756276985,0.001,2721.5,2720.2,0.771]
[1769756277187,0.001,2721.5,2720.3,13.02428287]
[1769756277911,0.001,2721.3,2720.3,13.02428287]
[1769756280629,0.31253581,2722.0,2719.6,0.002]
[1769756280630,0.31253581,2722.0,2720.4,13.02428287]
[1769756280927,0.31253581,2722.0,2720.6,13.02428287]
[1769756281128,0.31253581,2722.0,2720.7,0.771]
[1769756282105,0.31253581,2722.0,2720.8,0.771]
[1769756282840,13.04170449,2721.7,2720.5,1.30242829]
[1769756283039,14.35511494,2721.6,2720.0,13.02428287]
[1769756283203,14.35511494,2721.6,2720.1,0.771]
[1769756283409,20.34398449,2721.4,2720.1,0.771]
[1769756283635,13.04070449,2721.4,2720.2,0.771]
[1769756284135,13.04070449,2721.0,2718.9,0.47485934]
[1769756284340,5.91346,2719.9,2718.6,0.19449029]
[1769756284507,0.1024,2719.0,2717.2,13.02628287]
[1769756284707,30.0,2719.4,2717.2,13.02628287]
[1769756284708,0.1024,2718.8,2717.2,0.002]
[1769756284947,0.1024,2718.8,2717.3,13.02628287]
[1769756285245,0.1024,2718.6,2717.4,2.07382829]
[1769756285620,0.1024,2718.6,2717.4,1.30282829]
[1769756286505,14.00339274,2719.8,2717.4,14.32711116]
[1769756286705,0.1024,2719.6,2717.4,14.32711116]
[1769756287137,0.1024,2719.6,2717.6,13.02428287]
[1769756287319,0.1024,2719.6,2717.8,13.02428287]
[1769756288209,1.42840005,2719.7,2717.8,13.02428287]
[1769756288840,1.42840005,2719.7,2718.0,13.02428287]
[1769756289227,1.42840005,2719.7,2718.0,13.94407491]
[1769756289439,1.42840005,2719.7,2718.0,13.02428287]
[1769756289641,1.42840005,2719.7,2718.2,13.02428287]
[1769756289856,0.001,2718.4,2718.2,13.02428287]
[1769756290244,0.001,2718.4,2718.3,13.79528287]
[1769756290440,1.42840005,2719.7,2718.4,13.02428287]
[1769756291225,1.42840005,2719.7,2718.3,0.771]
[1769756291226,14.46910454,2719.7,2718.3,0.771]
[1769756291554,1.42840005,2719.7,2718.3,13.24853381]
[1769756292756,1.42840005,2719.7,2718.4,0.771]